fUSD/lending_fUSD_20250909
["ID","MTS","AMOUNT","RATE_DAILY","PERIOD"]
[384576368,1757461848687,-400.0,0.00019726,2]
[384576369,1757461848697,-400.0,0.00019726,2]
[384576370,1757461848706,-400.0,0.00019726,2]
[384576371,1757461848715,-400.0,0.00019726,2]
[384576372,1757461848725,-400.0,0.00019726,2]
[384576373,1757461848734,-400.0,0.00019726,2]
[384576374,1757461848743,-494.16943548,0.00019726,2]
[384576375,1757461848752,-400.0,0.00019726,2]
[384576376,1757461848762,-400.0,0.00019726,2]
[384576377,1757461848772,-400.0,0.00019726,2]
[384576378,1757461848782,-400.0,0.00019726,2]
[384576379,1757461848792,-400.0,0.00019726,2]
[384576380,1757461848801,-229.5,0.00019726,2]
[384576381,1757461848810,-411.09856529,0.00019726,2]
[384576382,1757461848820,-400.0,0.00019726,2]
[384576383,1757461848829,-400.0,0.00019726,2]
[384576384,1757461848839,-400.0,0.00019726,2]
[384576385,1757461848848,-400.0,0.00019726,2]
[384576386,1757461848858,-17.31165271,0.00019726,2]
[384576387,1757461848875,-400.0,0.00019351,2]
[384576388,1757461848885,-382.68834729,0.00019726,2]
[384576389,1757461848895,-400.0,0.00019726,2]
[384576390,1757461848904,-282.92936346,0.00019726,2]
[384576391,1757461848913,-400.0,0.00019726,2]
[384576392,1757461848923,-400.0,0.00019726,2]
[384576393,1757461848932,-400.0,0.00019726,2]
[384576394,1757461848942,-400.0,0.00019726,2]
[384576395,1757461848951,-400.0,0.00019726,2]
[384576396,1757461848961,-137.67987517,0.00019726,2]
[384576397,1757461848973,-410.25012483,0.00019726,2]
[384576398,1757461848982,-148.74987517,0.00019726,2]
[384576399,1757461848993,-251.25012483,0.00019726,2]
[384576400,1757461849003,-400.0,0.00019726,2]
[384576401,1757461849012,-400.0,0.00019726,2]
[384576402,1757461849022,-400.0,0.00019726,2]
[384576403,1757461849032,-400.0,0.00019726,2]
[384576404,1757461849043,-151.939226,0.00019726,2]
[384576405,1757461849054,-400.0,0.00019726,2]
[384576406,1757461849063,-400.0,0.00019726,2]
[384576407,1757461849073,-400.0,0.00019726,2]
[384576408,1757461849083,-400.0,0.00019726,2]
[384576409,1757461849093,-400.0,0.00019726,2]
[384576410,1757461849103,-400.0,0.00019726,2]
[384576411,1757461849113,-400.0,0.00019726,2]
[384576412,1757461849122,-373.90091509,0.00019726,2]
[384576413,1757461849134,-26.09908491,0.00019726,2]
[384576414,1757461849144,-400.0,0.00019726,2]
[384576415,1757461849154,-1589.67,0.00019726,2]
[384576416,1757461849164,-992.05,0.00019726,2]
[384576417,1757461849173,-400.0,0.00019726,2]
[384576418,1757461849184,-1363.23,0.00019726,2]
[384576419,1757461849193,-400.0,0.00019726,2]
[384576420,1757461849203,-609.23,0.00019726,2]
[384576421,1757461849213,-400.0,0.00019726,2]
[384576422,1757461849222,-479.45,0.00019726,2]
[384576423,1757461849234,-400.0,0.00019726,2]
[384576424,1757461849244,-450.82,0.00019726,2]
[384576425,1757461849253,-400.0,0.00019726,2]
[384576426,1757461849262,-781.75,0.00019726,2]
[384576427,1757461849271,-400.0,0.00019726,2]
[384576428,1757461849281,-400.0,0.00019726,2]
[384576429,1757461849291,-400.0,0.00019726,2]
[384576430,1757461849300,-400.0,0.00019726,2]
[384576431,1757461849311,-712.05,0.00019726,2]
[384576432,1757461849320,-400.0,0.00019726,2]
[384576433,1757461849328,-400.0,0.00019726,2]
[384576434,1757461849338,-400.0,0.00019726,2]
[384576435,1757461849347,-651.99,0.00019726,2]
[384576436,1757461849356,-400.0,0.00019726,2]
[384576437,1757461849366,-400.0,0.00019726,2]
[384576438,1757461849375,-411.56,0.00019726,2]
[384576439,1757461849385,-400.0,0.00019726,2]
[384576440,1757461849394,-114.97423753,0.00019726,2]
[384576441,1757461850479,-500.0,0.00019028,2]
[384576442,1757461850488,-500.0,0.00019028,2]
[384576443,1757461850498,-500.0,0.00019028,2]
[384576444,1757461850507,-500.0,0.00019028,2]
[384576445,1757461850517,-500.0,0.00019028,2]
[384576446,1757461850528,-445.84801812,0.00019028,2]
[384576447,1757461850539,-500.0,0.00019028,2]
[384576448,1757461850550,-500.0,0.00019028,2]
[384576449,1757461850562,-500.0,0.00019028,2]
[384576450,1757461850572,-10.72258188,0.00019028,2]
[384576451,1757461850590,-489.27741812,0.00019028,2]
[384576452,1757461850603,-500.0,0.00019028,2]
[384576453,1757461850669,-500.0,0.00019028,2]
[384576454,1757461850679,-5000.0,0.00019078,2]
[384576455,1757461850689,-400.0,0.00019178,2]
[384576456,1757461850698,-400.0,0.00019178,2]
[384576457,1757461850709,-156.427361,0.00019351,2]
[384576458,1757461850718,-400.0,0.00019351,2]
[384576459,1757461850727,-540.87,0.00019351,2]
[384576460,1757461850737,-400.0,0.00019351,2]
[384576461,1757461850747,-521.64,0.00019351,2]
[384576462,1757461850756,-400.0,0.0001945,2]
[384576463,1757461850766,-400.0,0.0001945,2]
[384576464,1757461850775,-400.0,0.0001945,2]
[384576465,1757461850785,-400.0,0.0001945,2]
[384576466,1757461850794,-522.91,0.0001945,2]
[384576467,1757461850803,-517.81,0.00019452,2]
[384576468,1757461850812,-400.0,0.00019452,2]
[384576469,1757461850821,-400.0,0.00019625,2]
[384576470,1757461850830,-213.1,0.00019724,2]
[384576471,1757461850840,-400.0,0.00019724,2]
[384576472,1757461850850,-285.02576247,0.00019726,2]
[384576473,1757461850860,-785.75,0.00019726,2]
[384576474,1757461850870,-400.0,0.00019726,2]
[384576475,1757461850879,-500.0,0.00019735,2]
[384576476,1757461850891,-500.0,0.00019735,2]
[384576477,1757461850901,-500.0,0.00019735,2]
[384576478,1757461850911,-500.0,0.00019735,2]
[384576479,1757461850920,-500.0,0.00019735,2]
[384576480,1757461850931,-766.89791276,0.00019745,2]
[384576481,1757461850940,-3179.50120025,0.00019761,2]
[384576482,1757461850950,-500.0,0.00019773,2]
[384576483,1757461850959,-159.62497466,0.00019773,2]
[384576484,1757461850969,-500.0,0.00019773,2]
[384576485,1757461850978,-500.0,0.00019773,2]
[384576486,1757461850987,-235.21289286,0.00019773,2]
[384576487,1757461850997,-500.0,0.00019773,2]
[384576488,1757461851007,-588.02650002,0.00019773,2]
[384576489,1757461851016,-500.0,0.00019773,2]
[384576490,1757461851026,-502.93527942,0.00019773,2]
[384576491,1757461851035,-500.0,0.00019773,2]
[384576492,1757461851044,-500.0,0.00019773,2]
[384576493,1757461851054,-500.0,0.00019773,2]
[384576494,1757461851063,-500.0,0.00019773,2]
[384576495,1757461851072,-500.0,0.00019773,2]
[384576496,1757461851083,-2000.0,0.0001984,2]
[384576497,1757461851092,-159.05456853,0.00019881,2]
[384576498,1757461851102,-845.28163722,0.00019881,2]
[384576499,1757461851111,-5575.88497011,0.00019899,2]
[384576500,1757461851121,-400.0,0.00019899,2]
[384576501,1757461851133,-400.0,0.00019899,2]
[384576502,1757461851142,-400.0,0.00019899,2]
[384576503,1757461851151,-400.0,0.00019899,2]
[384576504,1757461851160,-400.0,0.00019899,2]
[384576505,1757461851171,-400.0,0.00019899,2]
[384576506,1757461851180,-400.0,0.00019899,2]
[384576507,1757461851189,-428.5,0.00019899,2]
[384576508,1757461851198,-603.77,0.00019899,2]
[384576509,1757461851207,-400.0,0.00019899,2]
[384576510,1757461851216,-400.0,0.00019899,2]
[384576511,1757461851226,-1027.51,0.00019899,2]
[384576512,1757461851235,-715.57,0.00019899,2]
[384576513,1757461851244,-517.33,0.00019899,2]
[384576514,1757461851253,-400.0,0.00019899,2]
[384576515,1757461851262,-400.0,0.00019899,2]
[384576516,1757461851272,-400.0,0.00019899,2]
[384576517,1757461851281,-400.0,0.00019899,2]
[384576518,1757461851290,-400.0,0.00019899,2]
[384576519,1757461851299,-944.06,0.00019899,2]
[384576520,1757461851308,-400.0,0.00019899,2]
[384576521,1757461851317,-400.0,0.00019899,2]
[384576522,1757461851326,-400.0,0.00019899,2]
[384576523,1757461851335,-400.0,0.00019899,2]
[384576524,1757461851345,-400.0,0.00019899,2]
[384576525,1757461851354,-400.0,0.00019899,2]
[384576526,1757461851364,-400.0,0.00019899,2]
[384576527,1757461851374,-400.0,0.00019899,2]
[384576528,1757461851383,-400.0,0.00019899,2]
[384576529,1757461851392,-400.0,0.00019899,2]
[384576530,1757461851401,-156.427361,0.00019899,2]
[384576531,1757461851411,-465.30372477,0.00019973,2]
[384576532,1757461851421,-465.08,0.00019973,2]
[384576533,1757461851431,-33761.0595918,0.00019974,2]
[384576534,1757461851442,-500.0,0.0001998,2]
[384576535,1757461851454,-500.0,0.0001998,2]
[384576536,1757461851463,-500.0,0.0001998,2]
[384576537,1757461851473,-500.0,0.0001998,2]
[384576538,1757461851482,-16615.8552356,0.00019981,2]
[384576539,1757461851492,-257237.479246,0.00019981,2]
[384576540,1757461851501,-2008.8556459,0.00019981,2]
[384576541,1757461851510,-151.0,0.00019981,2]
[384576542,1757461851520,-151.0,0.00019981,2]
[384576543,1757461851529,-151.0,0.00019981,2]
[384576544,1757461851539,-151.0,0.00019981,2]
[384576545,1757461851548,-151.955668,0.00019981,2]
[384576546,1757461851558,-151.0,0.00019981,2]
[384576547,1757461851567,-151.0,0.00019981,2]
[384576548,1757461851576,-151.0,0.00019981,2]
[384576549,1757461851586,-151.0,0.00019981,2]
[384576550,1757461851595,-151.0,0.00019981,2]
[384576551,1757461851607,-151.0,0.00019981,2]
[384576552,1757461851617,-151.0,0.00019981,2]
[384576553,1757461851626,-151.0,0.00019981,2]
[384576554,1757461851636,-151.0,0.00019981,2]
[384576555,1757461851647,-151.0,0.00019981,2]
[384576556,1757461851656,-151.0,0.00019981,2]
[384576557,1757461851665,-151.0,0.00019981,2]
[384576558,1757461851674,-151.0,0.00019981,2]
[384576559,1757461851686,-500.0,0.00019983,2]
[384576560,1757461851695,-500.0,0.00019983,2]
[384576561,1757461851704,-500.0,0.00019983,2]
[384576562,1757461851714,-11386.270143,0.00019984,2]
[384576563,1757461851723,-653.287374,0.00019989,2]
[384576564,1757461851732,-400.0,0.00019998,2]
[384576565,1757461851741,-400.0,0.00019998,2]
[384576566,1757461851751,-400.0,0.00019998,2]
[384576567,1757461851760,-546.31,0.00019998,2]
[384576568,1757461851770,-316.71,0.00019998,2]
[384576569,1757461851780,-400.0,0.00019998,2]
[384576570,1757461851789,-400.0,0.00019998,2]
[384576571,1757461851799,-400.0,0.00019998,2]
[384576572,1757461851808,-244.72026068,0.00019998,2]
[384576573,1757461851817,-400.0,0.00019998,2]
[384576574,1757461851827,-400.0,0.00019998,2]
[384576575,1757461851837,-507.47975357,0.00019998,2]
[384576576,1757461851847,-325.8,0.00019998,2]
[384576577,1757461851856,-400.0,0.00019998,2]
[384576578,1757461851865,-400.0,0.00019998,2]
[384576579,1757461851875,-151.02,0.00019998,2]
[384576580,1757461851884,-365.90245234,0.00019998,2]
[384576581,1757461851893,-400.0,0.00019998,2]
[384576582,1757461851903,-400.0,0.00019998,2]
[384576583,1757461851912,-466.08,0.00019998,2]
[384576584,1757461851922,-400.0,0.00019998,2]
[384576585,1757461851931,-234.97,0.00019998,2]
[384576586,1757461851941,-290.87,0.00019998,2]
[384576587,1757461851951,-415.65,0.00019998,2]
[384576588,1757461851960,-403.8,0.00019998,2]
[384576589,1757461851975,-400.0,0.00019998,2]
[384576590,1757461851984,-400.0,0.00019998,2]
[384576591,1757461851994,-468.47,0.00019998,2]
[384576592,1757461852004,-2215.27406624,0.00019999,2]
[384576593,1757461852013,-500.0,0.00019999,2]
[384576594,1757461852023,-500.0,0.00019999,2]
[384576595,1757461852033,-500.0,0.00019999,2]
[384576596,1757461852042,-500.0,0.00019999,2]
[384576597,1757461852052,-500.0,0.00019999,2]
[384576598,1757461852062,-500.0,0.00019999,2]
[384576599,1757461852071,-203.1,0.00019999,2]
[384576600,1757461852081,-400.0,0.00019999,2]
[384576601,1757461852091,-500.0,0.00019999,2]
[384576602,1757461852101,-500.0,0.00019999,2]
[384576603,1757461852110,-400.0,0.00019999,2]
[384576604,1757461852120,-400.0,0.00019999,2]
[384576605,1757461852129,-400.0,0.00019999,2]
[384576606,1757461852139,-400.0,0.00019999,2]
[384576607,1757461852148,-400.0,0.00019999,2]
[384576608,1757461852157,-400.0,0.00019999,2]
[384576609,1757461852167,-401.17,0.00019999,2]
[384576610,1757461852176,-400.0,0.00019999,2]
[384576611,1757461852186,-400.0,0.00019999,2]
[384576612,1757461852195,-400.0,0.00019999,2]
[384576613,1757461852205,-400.0,0.00019999,2]
[384576614,1757461852214,-400.0,0.00019999,2]
[384576615,1757461852223,-400.0,0.00019999,2]
[384576616,1757461852233,-400.0,0.00019999,2]
[384576617,1757461852242,-400.0,0.00019999,2]
[384576618,1757461852252,-400.0,0.00019999,2]
[384576619,1757461852261,-400.0,0.00019999,2]
[384576620,1757461852271,-400.0,0.00019999,2]
[384576621,1757461852280,-400.0,0.00019999,2]
[384576622,1757461852290,-400.0,0.00019999,2]
[384576623,1757461852300,-400.0,0.00019999,2]
[384576624,1757461852310,-400.0,0.00019999,2]
[384576625,1757461852319,-400.0,0.00019999,2]
[384576626,1757461852329,-400.0,0.00019999,2]
[384576627,1757461852339,-400.0,0.00019999,2]
[384576628,1757461852348,-299.16,0.00019999,2]
[384576629,1757461852358,-400.0,0.00019999,2]
[384576630,1757461852368,-400.0,0.00019999,2]
[384576631,1757461852378,-400.0,0.00019999,2]
[384576632,1757461852388,-400.0,0.00019999,2]
[384576633,1757461852398,-400.0,0.00019999,2]
[384576634,1757461852408,-400.0,0.00019999,2]
[384576635,1757461852418,-500.0,0.00019999,2]
[384576636,1757461852428,-400.0,0.00019999,2]
[384576637,1757461852437,-400.0,0.00019999,2]
[384576638,1757461852447,-400.0,0.00019999,2]
[384576639,1757461852457,-400.0,0.00019999,2]
[384576640,1757461852467,-400.0,0.00019999,2]
[384576641,1757461852476,-400.0,0.00019999,2]
[384576642,1757461852485,-400.0,0.00019999,2]
[384576643,1757461852495,-400.0,0.00019999,2]
[384576644,1757461852505,-400.0,0.00019999,2]
[384576645,1757461852514,-400.0,0.00019999,2]
[384576646,1757461852524,-484.76,0.00019999,2]
[384576647,1757461852533,-151.0,0.00019999,2]
[384576648,1757461852543,-151.0,0.00019999,2]
[384576649,1757461852553,-151.0,0.00019999,2]
[384576650,1757461852562,-151.0,0.00019999,2]
[384576651,1757461852571,-151.0,0.00019999,2]
[384576652,1757461852581,-163.45663,0.00019999,2]
[384576653,1757461852591,-151.0,0.00019999,2]
[384576654,1757461852600,-408.75,0.00019999,2]
[384576655,1757461852613,-400.0,0.00019999,2]
[384576656,1757461852623,-400.0,0.00019999,2]
[384576657,1757461852633,-400.0,0.00019999,2]
[384576658,1757461852642,-365.1200177,0.00019999,2]
[384576659,1757461852652,-193.18,0.00019999,2]
[384576660,1757461852661,-151.0,0.00019999,2]
[384576661,1757461852671,-330.55,0.00019999,2]
[384576662,1757461852680,-400.0,0.00019999,2]
[384576663,1757461852690,-400.0,0.00019999,2]
[384576664,1757461852699,-400.0,0.00019999,2]
[384576665,1757461852710,-463.57,0.00019999,2]
[384576666,1757461852721,-400.0,0.00019999,2]
[384576667,1757461852730,-400.0,0.00019999,2]
[384576668,1757461852741,-400.0,0.00019999,2]
[384576669,1757461852751,-400.0,0.00019999,2]
[384576670,1757461852761,-400.0,0.00019999,2]
[384576671,1757461852770,-400.0,0.00019999,2]
[384576672,1757461852780,-400.0,0.00019999,2]
[384576673,1757461852790,-400.0,0.00019999,2]
[384576674,1757461852799,-400.0,0.00019999,2]
[384576675,1757461852809,-151.192744,0.00019999,2]
[384576676,1757461852819,-400.0,0.00019999,2]
[384576677,1757461852828,-151.0,0.00019999,2]
[384576678,1757461852838,-400.0,0.00019999,2]
[384576679,1757461852847,-400.0,0.00019999,2]
[384576680,1757461852858,-400.0,0.00019999,2]
[384576681,1757461852867,-263.239258,0.00019999,2]
[384576682,1757461852877,-400.0,0.00019999,2]
[384576683,1757461852886,-402.22576641,0.00019999,2]
[384576684,1757461852896,-400.0,0.00019999,2]
[384576685,1757461852905,-400.0,0.00019999,2]
[384576686,1757461852915,-400.0,0.00019999,2]
[384576687,1757461852925,-500.0,0.00019999,2]
[384576688,1757461852935,-404.96282224,0.00019999,2]
[384576689,1757461852944,-400.0,0.00019999,2]
[384576690,1757461852953,-500.22,0.00019999,2]
[384576691,1757461852963,-400.0,0.00019999,2]
[384576692,1757461852972,-400.0,0.00019999,2]
[384576693,1757461852982,-400.0,0.00019999,2]
[384576694,1757461852992,-400.0,0.00019999,2]
[384576695,1757461853001,-400.0,0.00019999,2]
[384576696,1757461853011,-400.0,0.00019999,2]
[384576697,1757461853020,-675.32,0.00019999,2]
[384576698,1757461853030,-400.0,0.00019999,2]
[384576699,1757461853040,-689.15,0.00019999,2]
[384576700,1757461853049,-400.0,0.00019999,2]
[384576701,1757461853059,-2029.07,0.00019999,2]
[384576702,1757461853068,-400.0,0.00019999,2]
[384576703,1757461853078,-400.0,0.00019999,2]
[384576704,1757461853087,-400.0,0.00019999,2]
[384576705,1757461853097,-400.0,0.00019999,2]
[384576706,1757461853107,-437.31,0.00019999,2]
[384576707,1757461853117,-400.0,0.00019999,2]
[384576708,1757461853126,-400.0,0.00019999,2]
[384576709,1757461853137,-156.89,0.00019999,2]
[384576710,1757461853146,-931.79,0.00019999,2]
[384576711,1757461853156,-405.57,0.00019999,2]
[384576712,1757461853166,-400.0,0.00019999,2]
[384576713,1757461853175,-438.02,0.00019999,2]
[384576714,1757461853185,-400.0,0.00019999,2]
[384576715,1757461853194,-240.51649713,0.00019999,2]
[384576716,1757461853204,-400.0,0.00019999,2]
[384576717,1757461853213,-400.0,0.00019999,2]
[384576718,1757461853223,-500.0,0.00019999,2]
[384576719,1757461853232,-400.0,0.00019999,2]
[384576720,1757461853241,-400.0,0.00019999,2]
[384576721,1757461853250,-400.0,0.00019999,2]
[384576722,1757461853261,-400.0,0.00019999,2]
[384576723,1757461853270,-400.0,0.00019999,2]
[384576724,1757461853280,-500.0,0.00019999,2]
[384576725,1757461853289,-400.0,0.00019999,2]
[384576726,1757461853299,-400.0,0.00019999,2]
[384576727,1757461853308,-400.0,0.00019999,2]
[384576728,1757461853318,-500.0,0.00019999,2]
[384576729,1757461853327,-400.0,0.00019999,2]
[384576730,1757461853337,-1514.18,0.00019999,2]
[384576731,1757461853346,-400.0,0.00019999,2]
[384576732,1757461853356,-400.0,0.00019999,2]
[384576733,1757461853366,-400.0,0.00019999,2]
[384576734,1757461853376,-405.94,0.00019999,2]
[384576735,1757461853386,-500.0,0.00019999,2]
[384576736,1757461853395,-400.0,0.00019999,2]
[384576737,1757461853405,-400.0,0.00019999,2]
[384576738,1757461853414,-400.0,0.00019999,2]
[384576739,1757461853424,-400.0,0.00019999,2]
[384576740,1757461853433,-790.98,0.00019999,2]
[384576741,1757461853443,-400.0,0.00019999,2]
[384576742,1757461853453,-400.0,0.00019999,2]
[384576743,1757461853463,-300.12,0.00019999,2]
[384576744,1757461853473,-400.0,0.00019999,2]
[384576745,1757461853482,-400.0,0.00019999,2]
[384576746,1757461853493,-400.0,0.00019999,2]
[384576747,1757461853502,-400.0,0.00019999,2]
[384576748,1757461853512,-913.57,0.00019999,2]
[384576749,1757461853523,-400.0,0.00019999,2]
[384576750,1757461853532,-400.0,0.00019999,2]
[384576751,1757461853542,-602.63,0.00019999,2]
[384576752,1757461853553,-400.0,0.00019999,2]
[384576753,1757461853564,-838.32,0.00019999,2]
[384576754,1757461853574,-400.0,0.00019999,2]
[384576755,1757461853585,-400.0,0.00019999,2]
[384576756,1757461853596,-400.0,0.00019999,2]
[384576757,1757461853609,-400.0,0.00019999,2]
[384576758,1757461853619,-421.74,0.00019999,2]
[384576759,1757461853628,-400.0,0.00019999,2]
[384576760,1757461853639,-765.03,0.00019999,2]
[384576761,1757461853650,-400.0,0.00019999,2]
[384576762,1757461853660,-400.0,0.00019999,2]
[384576763,1757461853670,-400.0,0.00019999,2]
[384576764,1757461853680,-400.0,0.00019999,2]
[384576765,1757461853690,-400.0,0.00019999,2]
[384576766,1757461853700,-400.0,0.00019999,2]
[384576767,1757461853710,-400.0,0.00019999,2]
[384576768,1757461853719,-400.0,0.00019999,2]
[384576769,1757461853729,-400.0,0.00019999,2]
[384576770,1757461853738,-400.0,0.00019999,2]
[384576771,1757461853748,-400.0,0.00019999,2]
[384576772,1757461853758,-749.56,0.00019999,2]
[384576773,1757461853767,-400.0,0.00019999,2]
[384576774,1757461853777,-400.0,0.00019999,2]
[384576775,1757461853787,-500.0,0.00019999,2]
[384576776,1757461853796,-400.0,0.00019999,2]
[384576777,1757461853806,-400.0,0.00019999,2]
[384576778,1757461853815,-888.81,0.00019999,2]
[384576779,1757461853824,-400.0,0.00019999,2]
[384576780,1757461853834,-400.0,0.00019999,2]
[384576781,1757461853844,-1200.14,0.00019999,2]
[384576782,1757461853854,-400.0,0.00019999,2]
[384576783,1757461853863,-400.0,0.00019999,2]
[384576784,1757461853873,-400.0,0.00019999,2]
[384576785,1757461853885,-400.0,0.00019999,2]
[384576786,1757461853895,-400.0,0.00019999,2]
[384576787,1757461853904,-400.0,0.00019999,2]
[384576788,1757461853914,-400.0,0.00019999,2]
[384576789,1757461853925,-400.0,0.00019999,2]
[384576790,1757461853934,-400.0,0.00019999,2]
[384576791,1757461853944,-400.0,0.00019999,2]
[384576792,1757461853953,-400.0,0.00019999,2]
[384576793,1757461853963,-400.0,0.00019999,2]
[384576794,1757461853972,-400.0,0.00019999,2]
[384576795,1757461853982,-400.0,0.00019999,2]
[384576796,1757461853991,-400.0,0.00019999,2]
[384576797,1757461854001,-400.0,0.00019999,2]
[384576798,1757461854011,-400.0,0.00019999,2]
[384576799,1757461854020,-400.0,0.00019999,2]
[384576800,1757461854030,-400.0,0.00019999,2]
[384576801,1757461854040,-489.47,0.00019999,2]
[384576802,1757461854049,-400.0,0.00019999,2]
[384576803,1757461854059,-49321.91167809,0.0002,2]
[384576804,1757461854069,-200.0,0.0002,2]
[384576805,1757461854079,-400.0,0.0002,2]
[384576806,1757461854089,-400.0,0.0002,2]
[384576807,1757461854098,-400.0,0.0002,2]
[384576808,1757461854108,-492.98988195,0.0002,2]
[384576809,1757461854118,-450.18,0.0002,2]
[384576810,1757461854128,-531.05,0.0002,2]
[384576811,1757461854138,-400.0,0.0002,2]
[384576812,1757461854147,-400.0,0.0002,2]
[384576813,1757461854157,-400.0,0.0002,2]
[384576814,1757461854166,-400.0,0.0002,2]
[384576815,1757461854175,-400.0,0.0002,2]
[384576816,1757461854185,-400.0,0.0002,2]
[384576817,1757461854194,-400.0,0.0002,2]
[384576818,1757461854204,-400.0,0.0002,2]
[384576819,1757461854214,-400.0,0.0002,2]
[384576820,1757461854223,-400.0,0.0002,2]
[384576821,1757461854232,-400.0,0.0002,2]
[384576822,1757461854242,-400.0,0.0002,2]
[384576823,1757461854251,-400.0,0.0002,2]
[384576824,1757461854261,-400.0,0.0002,2]
[384576825,1757461854427,-400.0,0.0002,2]
[384576826,1757461854436,-400.0,0.0002,2]
[384576827,1757461854446,-400.0,0.0002,2]
[384576828,1757461854455,-400.0,0.0002,2]
[384576829,1757461854465,-205.99221561,0.0002,2]
[384576830,1757461854474,-400.0,0.0002,2]
[384576831,1757461854483,-400.0,0.0002,2]
[384576832,1757461854492,-400.0,0.0002,2]
[384576833,1757461854502,-400.0,0.0002,2]
[384576834,1757461854511,-400.0,0.0002,2]
[384576835,1757461854520,-400.0,0.0002,2]
[384576836,1757461854529,-400.0,0.0002,2]
[384576837,1757461854538,-400.0,0.0002,2]
[384576838,1757461854547,-400.0,0.0002,2]
[384576839,1757461854556,-401.48,0.0002,2]
[384576840,1757461854566,-400.0,0.0002,2]
[384576841,1757461854575,-400.0,0.0002,2]
[384576842,1757461854583,-400.0,0.0002,2]
[384576843,1757461854593,-400.0,0.0002,2]
[384576844,1757461854602,-400.0,0.0002,2]
[384576845,1757461854614,-400.0,0.0002,2]
[384576846,1757461854623,-400.0,0.0002,2]
[384576847,1757461854632,-253.84,0.0002,2]
[384576848,1757461854642,-400.0,0.0002,2]
[384576849,1757461854651,-400.0,0.0002,2]
[384576850,1757461854660,-400.0,0.0002,2]
[384576851,1757461854670,-400.0,0.0002,2]
[384576852,1757461854679,-400.0,0.0002,2]
[384576853,1757461854688,-4.99352336,0.0002,2]
[384576854,1757461855309,-400.0,0.00019178,2]
[384576855,1757461855318,-56.7966396,0.00019351,2]
[384576856,1757461855329,-343.2033604,0.00019351,2]
[384576857,1757461855338,-157.26365909,0.0001945,2]
[384576859,1757461987071,150.0,0.00030136,120]
[384576860,1757461990299,292.19,0.00016438,2]
[384576861,1757462155555,-283.62824309,0.00018595,2]
[384576862,1757462159365,-223.12123972,0.00018595,2]
[384576863,1757462161038,-212.78697343,0.00018595,2]
[384576864,1757462163647,-176.87876028,0.00018595,2]
[384576865,1757462179901,4947.237473,0.00018502,2]
[384576866,1757462261136,541.913698,0.00018502,2]
[384576867,1757462311663,966.72477555,0.000185,2]
[384576869,1757462355657,2332.83,0.00018495,2]